bitfinex/quotes_BTCUSD_20241216
["timestamp","ask_amount","ask_price","bid_price","bid_amount"]
[1734317978636,0.1751726,104470.0,104460.0,0.17829214]
[1734317980706,0.2194633,104470.0,104460.0,0.17829214]
[1734317981708,0.2194633,104470.0,104460.0,0.17829226]
[1734317984936,0.2194633,104470.0,104460.0,0.172314]
[1734317985138,0.2194633,104470.0,104460.0,0.17829233]
[1734317987602,0.21916091,104470.0,104460.0,0.17829233]
[1734317990903,0.21916091,104470.0,104460.0,0.18785768]
[1734317991113,0.21916091,104470.0,104460.0,0.172314]
[1734317991320,0.31651807,104480.0,104460.0,0.172314]
[1734317991321,0.21762832,104480.0,104470.0,0.191442]
[1734317991443,0.08259749,104480.0,104470.0,0.20698569]
[1734317991668,0.13259749,104480.0,104470.0,0.20698569]
[1734317991924,0.13259749,104480.0,104470.0,0.19742034]
[1734317992087,0.00069749,104480.0,104470.0,0.19742034]
[1734317992299,0.00069749,104480.0,104470.0,0.33997692]
[1734317992479,0.00069749,104480.0,104470.0,0.46884653]
[1734317992680,0.00069749,104480.0,104470.0,0.41220302]
[1734317992927,0.05069749,104480.0,104470.0,0.19742034]
[1734317993757,0.05069749,104480.0,104470.0,0.18742034]
[1734317994879,0.05069749,104480.0,104470.0,0.20336869]
[1734317996652,0.12989749,104480.0,104470.0,0.20336869]
[1734317996990,0.12989749,104480.0,104470.0,0.20921312]
[1734317997192,0.17989749,104480.0,104470.0,0.20921312]
[1734317999290,0.27418819,104480.0,104470.0,0.20921312]
[1734317999557,0.2781317,104480.0,104470.0,0.20921312]
[1734317999735,0.33477521,104480.0,104470.0,0.01777112]
[1734318000151,0.2781317,104480.0,104470.0,0.01777112]
[1734318000358,0.2781317,104480.0,104470.0,0.20921312]
[1734318000557,0.323514,104480.0,104470.0,0.20739035]
[1734318000709,0.323514,104480.0,104470.0,0.01594835]
[1734318000909,0.1292,104470.0,104460.0,0.3638463]
[1734318001116,0.33407772,104470.0,104460.0,8.63e-05]
[1734318001382,0.4122327,104470.0,104460.0,8.63e-05]
[1734318001592,0.2195907,104470.0,104460.0,8.63e-05]
[1734318001767,0.2195907,104470.0,104460.0,0.1915463]
[1734318001768,0.1253,104470.0,104460.0,0.1915463]
[1734318001984,0.1753,104470.0,104460.0,0.1915463]
[1734318002213,0.2195907,104470.0,104460.0,0.1915463]
[1734318003020,0.2195907,104470.0,104460.0,0.20111166]
[1734318007782,0.05,104460.0,104450.0,0.21893687]
[1734318008716,0.05,104460.0,104450.0,0.22491521]
[1734318009897,0.05,104460.0,104450.0,0.21362339]
[1734318010989,0.05,104460.0,104450.0,0.21780015]
[1734318011212,0.1754726,104470.0,104460.0,0.19146]
[1734318011443,0.1754726,104470.0,104460.0,0.2016151]
[1734318011678,0.1254726,104470.0,104460.0,0.2016151]
[1734318012599,0.0001726,104470.0,104460.0,0.2016151]
[1734318013353,0.0001726,104470.0,104460.0,0.19743834]
[1734318013789,0.0501726,104470.0,104460.0,0.19743834]
[1734318016462,0.0001726,104470.0,104460.0,0.19743834]
[1734318016655,0.0001726,104470.0,104460.0,0.19912374]
[1734318017097,0.0001726,104470.0,104460.0,0.19743834]
[1734318017664,0.0001726,104470.0,104460.0,0.28333552]
[1734318017867,0.0001726,104470.0,104460.0,0.19743834]
[1734318018916,0.0001726,104470.0,104460.0,0.28333552]
[1734318019124,0.0001726,104470.0,104460.0,0.50018409]
[1734318019294,0.0001726,104470.0,104460.0,0.67197845]
[1734318019924,0.0001726,104470.0,104460.0,0.67194764]
[1734318020318,6e-07,104470.0,104460.0,0.67194764]
[1734318020518,0.00065809,104480.0,104460.0,0.76623834]
[1734318020769,0.00065809,104480.0,104470.0,0.00744048]
[1734318020974,0.00065809,104480.0,104470.0,0.01341882]
[1734318021174,0.00065809,104480.0,104470.0,0.09928519]
[1734318021309,0.00065809,104480.0,104470.0,0.21442362]
[1734318021736,0.00065809,104480.0,104470.0,0.30028999]
[1734318022850,0.00065809,104480.0,104460.0,0.88502426]
[1734318023079,0.12865809,104490.0,104470.0,0.191428]
[1734318023280,0.12871447,104490.0,104470.0,0.191428]
[1734318023801,0.07871447,104490.0,104470.0,0.191428]
[1734318024009,0.12871447,104490.0,104470.0,0.191428]
[1734318024237,0.12871447,104490.0,104470.0,0.574298]
[1734318024647,0.12871447,104490.0,104480.0,0.191424]
[1734318026981,0.07871447,104490.0,104480.0,0.191424]
[1734318027187,0.12871447,104490.0,104480.0,0.191424]
[1734318028217,0.27044708,104490.0,104480.0,0.191424]
[1734318029377,0.17681447,104490.0,104480.0,0.191424]
[1734318030310,0.17681447,104490.0,104480.0,0.20591301]
[1734318030603,0.12681447,104490.0,104480.0,0.20591301]
[1734318030835,0.17681447,104490.0,104480.0,0.20591301]
[1734318031055,0.12805638,104490.0,104480.0,0.26252163]
[1734318031260,3.8e-07,104490.0,104480.0,0.41342095]
[1734318031465,0.21250993,104530.0,104500.0,0.191387]
[1734318031466,0.04625809,104520.0,104500.0,0.191387]
[1734318031670,0.0456,104520.0,104510.0,0.24797762]
[1734318031907,0.13576562,104530.0,104510.0,0.43934662]
[1734318032111,0.0001726,104530.0,104510.0,0.63071562]
[1734318032312,0.00083069,104530.0,104520.0,0.19135]
[1734318033470,0.00099285,104530.0,104520.0,0.19135]
[1734318033676,0.00033476,104530.0,104520.0,0.30456724]
[1734318033880,0.00033476,104530.0,104520.0,0.32816724]
[1734318034123,0.00033476,104530.0,104520.0,0.30111342]
[1734318034335,7.6e-07,104530.0,104520.0,0.39540412]
[1734318034906,0.00017336,104530.0,104520.0,0.40137748]
[1734318035782,0.00017336,104530.0,104520.0,0.19732336]
[1734318036627,0.00017336,104530.0,104520.0,0.29161406]
[1734318037031,0.00017336,104530.0,104520.0,0.37777748]
[1734318037201,0.00017336,104530.0,104520.0,0.39207452]
[1734318037404,0.00017336,104530.0,104520.0,0.42989713]
[1734318037576,0.00017336,104530.0,104520.0,0.3059111]
[1734318039806,0.00017336,104530.0,104520.0,0.2116204]
[1734318040008,0.07687336,104530.0,104520.0,0.2116204]
[1734318040304,0.07753145,104530.0,104520.0,0.2116204]
[1734318040480,0.07753145,104530.0,104520.0,0.24944301]
[1734318040711,0.07753145,104530.0,104520.0,0.2116204]
[1734318041881,0.17116406,104530.0,104520.0,0.2116204]
[1734318042086,0.26996406,104530.0,104520.0,0.00597336]
[1734318042290,0.0829,104520.0,104510.0,0.344443]
[1734318042498,0.2733907,104520.0,104510.0,0.35041872]
[1734318042704,0.2733907,104520.0,104510.0,0.36501572]
[1734318042913,0.30955412,104520.0,104510.0,0.00597572]
[1734318043138,0.1734,104500.0,104490.0,0.344517]
[1734318043340,0.2676907,104500.0,104490.0,0.344517]
[1734318043557,0.2676907,104500.0,104490.0,0.35049359]
[1734318043769,0.22665412,104500.0,104480.0,8.63e-05]
[1734318043978,0.2197907,104490.0,104480.0,0.17834288]
[1734318044185,0.2197907,104490.0,104480.0,0.35062388]
[1734318044412,0.2197907,104490.0,104480.0,0.35062407]
[1734318044647,0.2197907,104490.0,104480.0,0.3446463]
[1734318044849,0.27186649,104490.0,104480.0,8.63e-05]
[1734318045024,0.25595412,104490.0,104480.0,8.63e-05]
[1734318045222,0.25595412,104490.0,104480.0,0.00025563]
[1734318045971,0.44735912,104490.0,104480.0,0.00025563]
[1734318046388,0.0755,104460.0,104450.0,0.1724043]
[1734318046609,0.2661907,104460.0,104450.0,8.63e-05]
[1734318046814,0.57997754,104460.0,104450.0,0.00065059]
[1734318047071,0.62997754,104460.0,104450.0,0.00065059]
[1734318047482,0.05065809,104430.0,104420.0,0.172367]
[1734318047685,0.05065809,104430.0,104420.0,0.17851716]
[1734318048739,0.00065809,104430.0,104420.0,0.17851716]
[1734318048884,0.00065809,104440.0,104430.0,0.172364]
[1734318049087,0.00065809,104440.0,104430.0,0.17834447]
[1734318049494,0.2161907,104460.0,104430.0,0.17834447]
[1734318049495,0.21589171,104460.0,104430.0,0.17834447]
[1734318049694,0.21589171,104460.0,104450.0,0.172331]
[1734318049695,0.12160101,104460.0,104450.0,0.172331]
[1734318049904,0.21589171,104460.0,104450.0,0.172331]
[1734318051310,0.26416898,104460.0,104450.0,0.172331]
[1734318051894,0.04827727,104450.0,104440.0,0.172334]
[1734318052095,0.22873139,104450.0,104440.0,0.172334]
[1734318052319,0.22873139,104450.0,104430.0,0.172352]
[1734318052320,0.18045412,104450.0,104430.0,0.344706]
[1734318052520,0.0942907,104440.0,104430.0,0.172352]
[1734318054527,0.0942907,104440.0,104420.0,0.18747963]
[1734318054739,0.21004069,104430.0,104420.0,0.35984963]
[1734318054941,0.25605412,104430.0,104420.0,0.35984963]
[1734318055513,0.1698907,104430.0,104420.0,0.35984963]
[1734318056990,0.30235412,104430.0,104420.0,0.18747963]
[1734318057462,0.2161907,104430.0,104420.0,0.18747963]
[1734318059097,0.2161907,104430.0,104420.0,0.17262299]
[1734318059509,0.2161907,104430.0,104420.0,0.18756629]
[1734318060925,0.26557631,104430.0,104420.0,0.18756629]
[1734318061126,0.2161907,104430.0,104420.0,0.18756629]
[1734318061397,0.22084515,104430.0,104420.0,0.18756629]
[1734318062010,0.26912242,104430.0,104420.0,0.18756629]
[1734318062194,0.22084515,104430.0,104420.0,0.18756629]
[1734318062567,0.30700857,104430.0,104420.0,0.18756629]
[1734318062928,0.53993213,104430.0,104420.0,0.01519929]
[1734318064540,0.63468699,104430.0,104420.0,0.01519929]
[1734318066037,0.68468699,104430.0,104420.0,0.01519929]
[1734318066484,0.63468699,104430.0,104420.0,0.01519929]
[1734318066860,0.63468699,104430.0,104410.0,8.63e-05]
[1734318066861,0.05,104420.0,104410.0,8.63e-05]
[1734318067082,0.54978812,104420.0,104410.0,0.0002477]
[1734318067281,0.64853378,104420.0,104410.0,0.0002477]
[1734318067481,0.64853378,104420.0,104410.0,0.01519575]
[1734318068944,0.40571542,104410.0,104400.0,0.26429075]
[1734318069190,0.50000612,104410.0,104400.0,0.26434713]
[1734318069404,0.50455072,104410.0,104400.0,0.26434713]
[1734318069613,0.1768353,104410.0,104400.0,0.43676013]
[1734318069969,0.22511257,104410.0,104400.0,0.43676013]
[1734318070182,0.22511257,104410.0,104400.0,0.44274209]
[1734318071316,0.22511257,104410.0,104400.0,0.44274196]
[1734318071720,0.22511257,104410.0,104400.0,0.442742]
[1734318072124,0.22511257,104410.0,104400.0,0.45768792]
[1734318072318,0.26299872,104410.0,104400.0,0.28527492]
[1734318072524,0.26299872,104410.0,104400.0,0.45768792]
[1734318073145,0.26299872,104410.0,104400.0,0.28527492]
[1734318074142,0.1768353,104410.0,104400.0,0.45768792]
[1734318074560,0.1768353,104410.0,104400.0,0.45170605]
[1734318074765,0.1768353,104410.0,104400.0,0.45768805]
[1734318075817,0.1768353,104410.0,104400.0,0.44274213]
[1734318075942,0.0045446,104410.0,104400.0,0.45768954]
[1734318076152,0.05282187,104410.0,104400.0,0.45768954]
[1734318077797,0.05282187,104410.0,104400.0,0.46518318]
[1734318078014,0.05282187,104410.0,104400.0,0.47116444]
[1734318079883,0.0045446,104410.0,104400.0,0.47116444]
[1734318080059,0.04827727,104430.0,104420.0,0.17238]
[1734318080370,0.04827727,104440.0,104420.0,0.35074126]
[1734318080572,0.04827727,104440.0,104420.0,0.52312126]
[1734318080573,0.14256797,104440.0,104420.0,0.52312126]
[1734318081112,0.14256797,104440.0,104430.0,0.172364]
[1734318081318,0.14256797,104440.0,104430.0,0.17834418]
[1734318081514,0.04827727,104440.0,104430.0,0.17834418]
[1734318084070,0.04827727,104440.0,104420.0,0.34476]
[1734318084071,0.04844987,104440.0,104420.0,0.34476]
[1734318084565,0.04844987,104440.0,104420.0,0.51714]
[1734318084840,0.04844987,104440.0,104430.0,0.172364]
[1734318090342,0.0001726,104440.0,104430.0,0.172364]
[1734318090979,0.04844987,104440.0,104430.0,0.172364]
[1734318092925,0.04844987,104440.0,104420.0,0.61679922]
[1734318093125,0.04844987,104440.0,104430.0,0.172364]
[1734318096086,0.04844987,104440.0,104430.0,0.1783438]
[1734318097206,0.0001726,104440.0,104430.0,0.26450722]
[1734318097461,0.03350987,104450.0,104430.0,0.1783438]
[1734318097666,0.03350987,104450.0,104430.0,0.5039078]
[1734318097870,0.03350987,104450.0,104440.0,0.153198]
[1734318098076,0.03350987,104450.0,104440.0,0.1591778]
[1734318098282,0.03350987,104450.0,104440.0,0.3123758]
[1734318099132,0.03350987,104450.0,104440.0,0.31243218]
[1734318100093,0.0490726,104460.0,104440.0,0.46563018]
[1734318100449,0.0944633,104460.0,104440.0,0.46563018]
[1734318100574,0.0001726,104460.0,104450.0,0.153183]
[1734318100774,0.0001726,104460.0,104450.0,0.24532622]
[1734318101010,0.0001726,104460.0,104450.0,0.36611469]
[1734318101226,6e-07,104460.0,104450.0,0.38260482]
[1734318101650,6e-07,104460.0,104450.0,0.37662502]
[1734318101855,6e-07,104460.0,104450.0,0.38260196]
[1734318103105,6e-07,104460.0,104450.0,0.46820657]
[1734318103340,6e-07,104460.0,104450.0,0.38260196]
[1734318104956,6e-07,104460.0,104450.0,0.38260199]
[1734318108355,0.04328306,104490.0,104480.0,0.153139]
[1734318108583,0.04328306,104490.0,104480.0,0.15911597]
[1734318109587,0.18533823,104490.0,104480.0,0.15911597]
[1734318110346,0.09104753,104490.0,104480.0,0.15911597]
[1734318111312,0.04384753,104490.0,104480.0,0.15911594]
[1734318111721,0.04384753,104490.0,104480.0,0.153139]
[1734318111879,0.04384753,104490.0,104480.0,0.1591159]
[1734318112076,0.01033766,104490.0,104480.0,0.1591159]
[1734318112284,0.03407434,104490.0,104480.0,0.1591159]
[1734318113126,0.00056447,104490.0,104480.0,0.1591159]
[1734318113376,0.15870987,104510.0,104490.0,0.153113]
[1734318113377,0.13344693,104510.0,104490.0,0.153113]
[1734318113518,0.22773763,104510.0,104490.0,0.1590899]
[1734318113735,0.13344693,104510.0,104490.0,0.4653379]
[1734318113952,0.08614693,104510.0,104490.0,0.46775064]
[1734318114122,0.08614693,104510.0,104500.0,0.15311]
[1734318114324,0.08614693,104510.0,104500.0,0.1590869]
[1734318115284,0.00824693,104510.0,104500.0,0.1590869]
[1734318116312,0.0761,104520.0,104500.0,0.4652949]
[1734318116717,0.0761,104520.0,104510.0,0.153095]
[1734318116857,0.0761,104520.0,104510.0,0.1590719]
[1734318117773,0.08434693,104520.0,104510.0,0.1590719]
[1734318118188,0.01009999,104520.0,104510.0,0.1590719]
[1734318119197,0.01834692,104520.0,104510.0,0.1590719]
[1734318119418,0.01009999,104520.0,104510.0,0.1590719]
[1734318120647,0.01843322,104520.0,104510.0,0.1590719]
[1734318120775,0.01843322,104520.0,104510.0,0.153095]
[1734318120983,0.00833323,104520.0,104510.0,0.15907031]
[1734318122102,8.63e-05,104520.0,104510.0,0.15907031]
[1734318122510,8.63e-05,104520.0,104510.0,0.16071269]
[1734318122718,8.63e-05,104520.0,104510.0,0.1827598]
[1734318123268,0.06730582,104540.0,104530.0,0.172199]
[1734318123562,0.0001728,104550.0,104530.0,0.35201569]
[1734318123879,0.0944635,104550.0,104540.0,0.17382438]
[1734318124067,0.0944635,104550.0,104540.0,0.2018468]
[1734318124068,0.0001728,104550.0,104540.0,0.2018468]
[1734318124295,0.0001728,104550.0,104540.0,0.17815731]
[1734318124546,0.00034222,104550.0,104540.0,0.17815731]
[1734318125234,0.00034222,104550.0,104540.0,0.17979969]
[1734318125461,0.00034222,104550.0,104540.0,0.17815731]
[1734318125694,0.00034222,104550.0,104540.0,0.17979969]
[1734318125943,0.00034222,104550.0,104540.0,0.17815731]
[1734318126179,0.00034222,104550.0,104540.0,0.17951229]
[1734318126640,0.00034222,104550.0,104540.0,0.17815731]
[1734318126854,0.00034222,104550.0,104540.0,0.17951229]
[1734318127085,0.09463292,104550.0,104540.0,0.20272948]
[1734318127305,0.30659634,104550.0,104540.0,0.00597531]
[1734318127494,0.48920895,104550.0,104540.0,0.00597531]
[1734318127696,0.79776876,104550.0,104520.0,0.16799737]
[1734318127895,0.37476463,104540.0,104520.0,0.31211903]
[1734318128102,0.0776,104530.0,104520.0,0.15904603]
[1734318128299,0.10589069,104530.0,104520.0,0.17397471]
[1734318129331,0.10589069,104530.0,104520.0,0.15904618]
[1734318129532,0.09466069,104530.0,104520.0,0.15904618]
[1734318130010,0.18082411,104530.0,104520.0,0.00597518]
[1734318130227,0.41945611,104530.0,104520.0,0.00597518]
[1734318130443,0.14196069,104530.0,104520.0,0.00597518]
[1734318130603,0.14196069,104530.0,104520.0,0.15905518]
[1734318133217,0.07596068,104530.0,104520.0,0.15905518]
[1734318133708,0.04764222,104550.0,104530.0,0.306108]
[1734318133916,0.14193292,104550.0,104540.0,0.153051]
[1734318134118,0.14671271,104550.0,104540.0,0.15902618]
[1734318134322,0.23287613,104550.0,104540.0,0.15902618]
[1734318135310,0.23287613,104550.0,104540.0,0.00597518]
[1734318135514,0.42417213,104550.0,104540.0,0.00597518]
[1734318136378,0.694677,104550.0,104540.0,0.00597518]
[1734318136497,0.60373379,104550.0,104540.0,0.00597518]
[1734318136866,0.98635279,104550.0,104520.0,0.306145]
[1734318137158,0.09727821,104540.0,104530.0,0.172199]
[1734318137369,0.0942907,104540.0,104530.0,0.17817402]
[1734318138201,0.0942907,104540.0,104530.0,0.00597502]
[1734318138403,0.02829069,104540.0,104530.0,0.00597502]
[1734318139058,0.02829069,104540.0,104520.0,0.497484]
[1734318139254,0.02829069,104540.0,104530.0,0.00597493]
[1734318139398,0.21960469,104540.0,104530.0,0.00597493]
[1734318139597,0.39251924,104540.0,104530.0,0.00597493]
[1734318139813,0.30576811,104540.0,104530.0,0.00597493]
[1734318141776,0.11445411,104540.0,104530.0,0.00597493]
[1734318141980,0.30576811,104540.0,104530.0,0.00597526]
[1734318142179,0.49709511,104540.0,104530.0,0.00597526]
[1734318142956,0.62509511,104540.0,104530.0,0.00597526]
[1734318143302,0.62509511,104540.0,104510.0,0.344443]
[1734318143488,0.28048526,104530.0,104510.0,0.35041869]
[1734318143689,0.00298784,104520.0,104510.0,0.17819669]
[1734318143887,0.37178812,104530.0,104510.0,0.35041969]
[1734318144101,0.00298784,104520.0,104510.0,0.35041969]
[1734318144297,0.37178812,104530.0,104510.0,0.52264269]
[1734318144557,0.00298784,104520.0,104510.0,0.35041969]
[1734318144707,0.37178812,104530.0,104510.0,0.35041969]
[1734318144911,0.00298784,104520.0,104510.0,0.35041969]
[1734318145115,0.37178812,104530.0,104510.0,0.52264269]
[1734318145319,0.00298784,104520.0,104510.0,0.35041969]
[1734318145536,0.37178812,104530.0,104510.0,0.52264269]
[1734318145747,0.00298784,104520.0,104510.0,0.35041969]
[1734318145917,0.26960538,104520.0,104510.0,0.00597569]
[1734318146124,0.58286754,104520.0,104510.0,0.00597569]
[1734318146330,0.63286754,104520.0,104510.0,0.00597569]
[1734318146769,0.49670412,104520.0,104510.0,0.00597569]
[1734318146928,0.2191907,104520.0,104510.0,0.00597569]
[1734318147133,1.23159892,104540.0,104510.0,0.17820769]
[1734318147332,0.09727866,104530.0,104520.0,0.172215]
[1734318147519,0.18045412,104530.0,104520.0,0.00597569]
[1734318147942,0.37178612,104530.0,104520.0,0.00597569]
[1734318148345,0.30578611,104530.0,104520.0,0.00597569]
[1734318149260,0.11445411,104530.0,104520.0,0.00597569]
[1734318150912,0.30578611,104530.0,104520.0,0.00597569]
[1734318151114,0.35578611,104530.0,104520.0,0.00597569]
[1734318151495,0.191351,104520.0,104500.0,0.344479]
[1734318151715,0.18045412,104520.0,104500.0,0.516718]
[1734318151870,0.18344213,104520.0,104500.0,0.35045402]
[1734318152061,0.08616342,104510.0,104500.0,0.00597602]
[1734318152260,0.27753242,104510.0,104500.0,0.00597602]
[1734318152457,0.37182312,104510.0,104500.0,0.00597602]
[1734318152923,0.37182312,104510.0,104490.0,0.1852582]
[1734318153125,0.08616342,104500.0,104490.0,0.1852582]
[1734318153331,0.125,104520.0,104500.0,0.172237]
[1734318153537,0.12798832,104520.0,104510.0,0.172232]
[1734318153745,0.00298832,104520.0,104510.0,0.172232]
[1734318153954,0.54101655,104540.0,104520.0,0.172207]
[1734318154156,0.0891513,104530.0,104520.0,0.17818261]
[1734318154364,0.00298788,104530.0,104520.0,0.17818261]
[1734318154773,0.00298788,104530.0,104520.0,0.17818247]
[1734318154977,0.50043951,104540.0,104520.0,0.35038947]
[1734318155128,0.50043951,104540.0,104520.0,0.344414]
[1734318155540,0.50043951,104540.0,104520.0,0.38223661]
[1734318155747,0.50043951,104540.0,104520.0,0.344414]
[1734318155952,0.50043951,104540.0,104530.0,0.172199]
[1734318155953,0.22296009,104540.0,104530.0,0.172199]
[1734318156179,0.30912351,104540.0,104530.0,0.172199]
[1734318157085,0.09446009,104540.0,104530.0,0.172199]
[1734318157383,0.00016939,104540.0,104530.0,0.172199]
[1734318158996,0.02528543,104550.0,104530.0,0.344398]
[1734318159163,0.11968415,104550.0,104540.0,0.172182]
[1734318159887,0.00488785,104550.0,104540.0,0.172182]
[1734318160098,0.00010802,104550.0,104540.0,0.17815663]
[1734318161417,0.00010802,104550.0,104540.0,0.172182]
[1734318161626,0.00010802,104550.0,104540.0,0.1781561]
[1734318163289,0.61331769,104570.0,104540.0,0.1781561]
[1734318163417,0.08915046,104560.0,104550.0,0.172166]
[1734318163619,0.27744142,104560.0,104540.0,0.51663202]
[1734318163820,0.27744142,104560.0,104540.0,0.52260619]
[1734318164069,0.08616342,104560.0,104540.0,0.52260619]
[1734318164461,0.08616342,104560.0,104550.0,0.172166]
[1734318166821,0.08616342,104560.0,104540.0,0.35714835]
[1734318166822,0.27744242,104560.0,104540.0,0.35714835]
[1734318167022,0.27744242,104560.0,104540.0,0.36312246]
[1734318167222,0.08616342,104550.0,104540.0,0.17825213]
[1734318167624,0.0891506,104550.0,104540.0,0.17825213]
[1734318167829,0.08616342,104550.0,104540.0,0.17825213]
[1734318168218,0.02016341,104550.0,104540.0,0.17825213]
[1734318168422,0.02016341,104550.0,104540.0,0.17825237]
[1734318168628,0.02016341,104550.0,104540.0,0.21607498]
[1734318168832,0.02016341,104550.0,104540.0,0.17825237]
[1734318169044,0.02016341,104550.0,104540.0,0.17227802]
[1734318169469,0.01303798,104550.0,104540.0,0.17227802]
[1734318169669,0.01275105,104550.0,104540.0,0.17227802]
[1734318170866,0.01275105,104550.0,104540.0,0.17245042]
[1734318172191,0.00298729,104550.0,104540.0,0.17245042]
[1734318172638,0.56302212,104560.0,104540.0,0.17245042]
[1734318172880,0.36302212,104560.0,104540.0,0.17245042]
[1734318173083,0.55431112,104560.0,104540.0,0.17245042]
[1734318173296,0.191296,104550.0,104540.0,0.00028042]
[1734318173496,0.00298722,104550.0,104540.0,0.00028042]
[1734318173631,0.00298722,104550.0,104540.0,0.17246242]
[1734318174444,0.48808957,104560.0,104540.0,0.17246242]
[1734318175246,0.08616342,104550.0,104540.0,0.00028042]
[1734318175454,0.28044663,104550.0,104540.0,0.00028042]
[1734318175719,0.08616342,104550.0,104540.0,0.00028042]
[1734318175908,0.08915066,104550.0,104540.0,0.17246242]
[1734318177641,0.08915063,104550.0,104540.0,0.17246242]
[1734318178128,0.08616342,104550.0,104540.0,0.17246242]
[1734318178366,0.30158319,104560.0,104540.0,0.17246242]
[1734318178598,0.30158319,104560.0,104540.0,0.34479942]
[1734318178849,0.00298721,104550.0,104540.0,0.34479942]
[1734318179088,0.6300021,104570.0,104550.0,0.344326]
[1734318179295,0.6300021,104570.0,104550.0,0.35030008]
[1734318179296,0.00298696,104560.0,104550.0,0.35030008]
[1734318179511,0.36642287,104570.0,104550.0,0.35030008]
[1734318179718,0.3616439,104570.0,104550.0,0.35030008]
[1734318179929,0.00298676,104560.0,104550.0,0.35030008]
[1734318180130,8.62e-05,104570.0,104560.0,0.172149]
[1734318180346,8.62e-05,104570.0,104560.0,0.17812308]
[1734318180950,8.62e-05,104570.0,104560.0,0.17812226]
[1734318182355,8.62e-05,104570.0,104560.0,0.25905106]
[1734318182594,8.62e-05,104570.0,104560.0,0.40314176]
[1734318183616,8.62e-05,104570.0,104560.0,0.40314098]
[1734318183782,8.62e-05,104570.0,104560.0,0.42635817]
[1734318186138,8.62e-05,104570.0,104560.0,0.43941634]
[1734318186815,8.62e-05,104570.0,104560.0,0.44108725]
[1734318187277,8.62e-05,104570.0,104560.0,0.22532017]
[1734318187665,8.62e-05,104570.0,104560.0,0.39746917]
[1734318188409,0.02076721,104600.0,104590.0,0.191222]
[1734318188788,0.02076721,104600.0,104590.0,0.1915828]
[1734318188931,0.02076721,104600.0,104590.0,0.191222]
[1734318189123,0.02076721,104600.0,104590.0,0.1914024]
[1734318189385,0.02076721,104600.0,104590.0,0.1915828]
[1734318189557,0.0213322,104600.0,104590.0,0.2164716]
[1734318191041,0.0213322,104600.0,104590.0,0.1915828]
[1734318191243,0.0213322,104600.0,104590.0,0.191222]
[1734318191761,0.0213322,104600.0,104590.0,0.02043164]
[1734318192104,0.0213322,104600.0,104590.0,0.21165364]
[1734318193439,0.76538679,104610.0,104590.0,0.21165364]
[1734318193653,0.08914928,104600.0,104590.0,0.21165364]
[1734318193840,0.00298586,104600.0,104590.0,0.21165364]
[1734318194079,0.75481426,104610.0,104590.0,0.21165364]
[1734318194251,0.08914928,104600.0,104590.0,0.21165364]
[1734318194430,0.75481426,104610.0,104590.0,0.21165364]
[1734318194658,0.00298586,104600.0,104590.0,0.21165364]
[1734318194857,0.75481426,104610.0,104590.0,0.21165364]
[1734318195059,0.00298583,104600.0,104590.0,0.21165364]
[1734318195389,0.75481426,104610.0,104590.0,0.21165364]
[1734318195576,0.00298583,104600.0,104590.0,0.21165364]
[1734318195829,0.75481426,104610.0,104590.0,0.191222]
[1734318195949,0.08616342,104600.0,104590.0,0.191222]
[1734318196148,0.08914926,104600.0,104590.0,0.191222]
[1734318196374,0.08616342,104600.0,104590.0,0.191222]
[1734318198324,0.02016341,104600.0,104590.0,0.191222]
[1734318198926,0.02024961,104600.0,104590.0,0.191222]
[1734318200321,0.02502693,104600.0,104590.0,0.191222]
[1734318200549,0.02024961,104600.0,104590.0,0.191222]
[1734318201103,0.02502692,104600.0,104590.0,0.191222]
[1734318201308,0.00486351,104600.0,104590.0,0.191222]
[1734318201715,8.62e-05,104600.0,104590.0,0.191222]
[1734318202119,8.62e-05,104600.0,104590.0,0.19245876]
[1734318202327,0.00486349,104600.0,104590.0,0.19245876]
[1734318202842,8.62e-05,104600.0,104590.0,0.19843021]
[1734318203260,0.19968683,104610.0,104590.0,0.19843021]
[1734318203470,0.00298574,104600.0,104590.0,0.19719345]
[1734318203679,0.19968683,104610.0,104590.0,0.19245876]
[1734318203878,0.19968683,104610.0,104590.0,0.19843023]
[1734318204084,0.00298573,104600.0,104590.0,0.19719347]
[1734318204302,0.39087583,104610.0,104590.0,0.19719347]
[1734318204515,0.00298578,104600.0,104590.0,0.19719347]
[1734318204713,0.39087583,104610.0,104580.0,0.71472956]
[1734318204929,0.00298579,104600.0,104580.0,0.72070115]
[1734318205134,0.00298579,104590.0,104580.0,0.52947215]
[1734318205336,0.39087583,104610.0,104580.0,0.72070215]
[1734318205577,0.00298581,104600.0,104590.0,0.191222]
[1734318205783,0.39087583,104610.0,104590.0,0.19719359]
[1734318206058,0.00298579,104600.0,104590.0,0.19719359]
[1734318206360,0.39087583,104610.0,104590.0,0.19719359]
[1734318206566,0.00298581,104600.0,104590.0,0.19719359]
[1734318206771,0.39087583,104610.0,104590.0,0.19719359]
[1734318207000,0.00298578,104600.0,104590.0,0.19719359]
[1734318207203,0.39087583,104610.0,104590.0,0.19719359]
[1734318207404,0.00298578,104600.0,104590.0,0.19719359]
[1734318207573,0.39087583,104610.0,104590.0,0.19719359]
[1734318207957,0.00298578,104600.0,104590.0,0.19719359]
[1734318208158,0.39182203,104610.0,104590.0,0.19719359]
[1734318208355,0.00298579,104600.0,104590.0,0.19719359]
[1734318208563,0.27846797,104610.0,104590.0,0.19719359]
[1734318208786,0.00298576,104600.0,104590.0,0.19719359]
[1734318208986,0.00111555,104610.0,104600.0,0.191204]
[1734318209350,0.00016935,104610.0,104600.0,0.27217559]
[1734318211394,0.00016935,104610.0,104600.0,0.266204]
[1734318212552,0.00025545,104610.0,104600.0,0.266204]
[1734318212749,0.16189501,104630.0,104600.0,0.266204]
[1734318212862,0.00298545,104620.0,104600.0,0.64875635]
[1734318213062,0.00298545,104610.0,104600.0,0.45755235]
[1734318213305,0.5725037,104630.0,104600.0,0.64874235]
[1734318213501,0.0077621,104620.0,104600.0,0.64874235]
[1734318213737,0.0077621,104610.0,104600.0,0.45754835]
[1734318213932,0.5225037,104630.0,104600.0,0.45754635]
[1734318214200,0.0077621,104620.0,104610.0,0.191185]
[1734318214337,0.5725037,104630.0,104610.0,0.191185]
[1734318214538,0.0077621,104620.0,104610.0,0.191185]
[1734318214732,0.5725037,104630.0,104610.0,0.191185]
[1734318214958,0.0077621,104620.0,104610.0,0.191185]
[1734318215162,0.5725037,104630.0,104610.0,0.191185]
[1734318215360,0.0077621,104620.0,104610.0,0.191185]
[1734318215574,0.5725037,104630.0,104610.0,0.191185]
[1734318215773,0.0077621,104620.0,104610.0,0.191185]
[1734318215992,0.5725037,104630.0,104610.0,0.191185]
[1734318216310,0.0077621,104620.0,104610.0,0.191185]
[1734318216443,0.5725037,104630.0,104610.0,0.191185]
[1734318216645,0.0077621,104620.0,104610.0,0.191185]
[1734318216847,0.57155331,104630.0,104610.0,0.191185]
[1734318217053,0.0077621,104620.0,104600.0,0.51629251]
[1734318217293,0.0077621,104620.0,104600.0,0.70748451]
[1734318217468,0.0077621,104610.0,104600.0,0.51629251]